bitfinex/quotes_ETHUSD_20250924
["timestamp","ask_amount","ask_price","bid_price","bid_amount"]
[1758726909649,0.001,4196.3,4196.2,4.7281]
[1758726910387,0.001,4196.3,4196.2,10.11120852]
[1758726911175,0.001,4196.3,4196.2,10.22960852]
[1758726913246,0.001,4196.3,4196.2,7.8465]
[1758726913497,0.001,4196.3,4196.2,7.8455]
[1758726913656,0.001,4196.3,4196.2,12.21360852]
[1758726914740,0.001,4196.3,4196.2,3.8275]
[1758726914947,0.001,4196.3,4196.2,12.21360852]
[1758726915455,0.001,4196.8,4196.7,2.3828246]
[1758726915779,0.001,4196.8,4196.7,31.80709501]
[1758726917663,0.001,4196.8,4196.7,32.20087041]
[1758726918256,0.001,4196.8,4196.7,4.1354]
[1758726918500,0.001,4196.8,4196.7,9.7936]
[1758726918705,0.001,4196.8,4196.7,3.1184]
[1758726919001,0.001,4196.8,4196.7,4.017]
[1758726920674,0.001,4196.8,4195.7,25.16798795]
[1758726920858,0.001,4196.8,4196.6,0.239]
[1758726921053,0.001,4196.8,4196.7,4.017]
[1758726921910,0.001,4196.8,4196.6,0.239]
[1758726922108,0.001,4196.8,4196.7,4.017]
[1758726922667,0.001,4196.8,4196.7,4.256]
[1758726923121,0.001,4196.8,4196.7,4.017]
[1758726923276,0.001,4196.8,4196.7,4.6902]
[1758726925959,0.001,4196.8,4196.7,4.017]
[1758726926199,0.001,4196.8,4196.4,0.239]
[1758726926390,0.001,4196.8,4196.6,3.0]
[1758726926778,0.001,4196.8,4196.7,0.239]
[1758726927605,0.001,4196.8,4196.7,0.6732]
[1758726927806,0.001,4196.8,4196.6,3.0]
[1758726928020,0.001,4196.8,4196.7,4.017]
[1758726931029,0.001,4196.8,4196.7,4.6902]
[1758726932484,0.001,4196.8,4196.4,0.239]
[1758726932684,0.001,4196.8,4196.4,1.985]
[1758726932896,0.4548,4196.8,4196.6,3.0]
[1758726933227,0.001,4196.8,4196.6,3.0]
[1758726933426,0.001,4196.8,4196.6,3.6732]
[1758726933582,0.001,4196.8,4196.7,0.239]
[1758726933788,0.001,4196.8,4196.7,4.255]
[1758726934028,0.001,4196.8,4196.7,4.016]
[1758726940903,0.001,4196.8,4196.7,4.255]
[1758726941199,0.001,4196.8,4196.7,4.016]
[1758726941704,0.4408,4196.8,4196.7,4.016]
[1758726941906,0.6865,4196.8,4196.7,4.016]
[1758726942093,0.001,4196.8,4196.7,4.016]
[1758726942431,0.0002,4196.8,4196.7,4.016]
[1758726943710,0.0002,4196.8,4196.7,4.2566]
[1758726943891,0.0002,4196.8,4196.7,4.6878]
[1758726944710,0.0002,4196.8,4196.7,7.1890246]
[1758726945037,0.0002,4196.8,4196.7,4.8062]
[1758726945614,0.0002,4196.8,4196.7,4.375]
[1758726945918,0.0002,4196.8,4196.7,0.1184]
[1758726946124,0.0002,4196.8,4196.7,4.1344]
[1758726946528,0.0002,4196.8,4196.7,4.8062]
[1758726949709,0.0002,4196.8,4196.7,7.1890246]
[1758726950402,0.001,4197.2,4196.8,0.792]
[1758726950739,0.001,4197.2,4197.1,26.8057598]
[1758726950942,0.001,4197.2,4197.1,30.8207598]
[1758726951140,0.001,4197.2,4197.1,31.4925598]
[1758726951546,0.001,4197.2,4197.1,31.96244625]
[1758726957647,0.001,4197.3,4197.2,6.17454074]
[1758726957958,0.001,4197.3,4197.2,6.84634074]
[1758726958333,0.001,4198.1,4197.6,3.1743137]
[1758726958538,0.001,4198.1,4197.6,12.19613683]
[1758726958737,0.001,4198.1,4197.6,12.8441137]
[1758726959867,0.001,4198.1,4197.6,12.1723137]
[1758726960360,0.001,4198.1,4197.6,12.8405137]
[1758726960680,0.001,4198.1,4197.6,12.9589137]
[1758726961149,0.001,4198.1,4197.6,12.5296137]
[1758726961351,0.02,4198.9,4198.8,2.38163284]
[1758726961703,0.02,4198.9,4198.8,11.40344916]
[1758726961876,0.02,4198.9,4198.8,11.37963284]
[1758726962070,0.02,4198.9,4198.8,12.04783284]
[1758726962563,0.02,4198.9,4198.8,12.83983284]
[1758726963929,0.02,4199.9,4199.8,3.17306576]
[1758726964205,0.02,4199.9,4199.8,9.17006576]
[1758726964342,0.02,4199.9,4199.8,9.83826576]
[1758726964830,0.02,4199.9,4199.8,6.789]
[1758726965035,0.6826,4199.9,4199.8,6.789]
[1758726965505,0.4526,4199.9,4199.8,6.789]
[1758726965632,0.02,4199.9,4199.8,6.789]
[1758726967366,0.02,4199.9,4199.8,9.17006576]
[1758726967761,0.02,4199.9,4199.8,6.789]
[1758726967949,0.02,4199.9,4199.8,12.40896576]
[1758726968151,0.02,4199.9,4199.8,12.83826576]
[1758726969499,0.0192,4199.9,4199.8,12.83826576]
[1758726969862,0.0192,4199.9,4199.8,12.40896576]
[1758726971212,0.0192,4199.9,4199.8,12.83826576]
[1758726971410,0.0192,4199.9,4199.8,12.95666576]
[1758726972620,0.0202,4199.9,4199.8,22.31018329]
[1758726972824,0.001,4200.8,4200.7,3.17255562]
[1758726973098,0.001,4200.8,4200.7,16.5608787]
[1758726973264,0.001,4200.8,4200.7,16.65547315]
[1758726974464,0.02,4200.9,4200.8,3.17249895]
[1758726974677,0.02,4200.9,4200.8,6.85649895]
[1758726975085,0.001,4201.3,4201.2,3.1722723]
[1758726975368,0.001,4201.3,4201.2,19.53678983]
[1758726975675,0.001,4201.3,4201.2,20.33918983]
[1758726975887,0.001,4201.3,4201.2,19.99297634]
[1758726976305,0.001,4201.7,4201.2,19.99297634]
[1758726976306,0.001,4201.7,4201.3,3.792]
[1758726976466,0.001,4201.7,4201.6,12.52556322]
[1758726976666,0.001,4201.7,4201.6,7.18304569]
[1758726977102,0.001,4201.7,4201.6,3.17204569]
[1758726977308,0.001,4201.7,4201.6,9.16604569]
[1758726978005,0.001,4201.7,4201.6,9.88540727]
[1758726978373,0.001,4201.7,4201.6,5.63200727]
[1758726978573,0.001,4201.7,4201.6,9.16504569]
[1758726978878,0.001,4201.7,4201.6,9.40744569]
[1758726979504,0.001,4201.7,4201.6,9.84904569]
[1758726980007,0.001,4201.7,4201.6,12.84904569]
[1758726981314,1e-08,4201.9,4201.8,3.1719324]
[1758726981519,0.6711,4203.7,4202.8,3.17136613]
[1758726981718,0.6711,4203.7,4202.8,9.18715979]
[1758726981927,0.6711,4203.7,4202.8,9.40576613]
[1758726982438,0.6711,4203.7,4202.8,12.40576613]
[1758726982608,0.6711,4203.7,4202.8,33.42059414]
[1758726982934,0.02,4203.9,4202.8,32.97899414]
[1758726983139,0.2353,4203.6,4202.8,32.73659414]
[1758726983290,0.4358,4203.5,4202.8,12.16336613]
[1758726983492,0.2353,4203.4,4202.8,10.18036613]
[1758726983686,0.2353,4203.4,4202.8,12.16236613]
[1758726984093,0.4358,4203.3,4202.8,12.16236613]
[1758726984516,0.02,4203.9,4202.8,12.16236613]
[1758726984724,0.4558,4203.9,4202.8,12.16236613]
[1758726984934,0.4358,4203.7,4202.8,12.16236613]
[1758726985138,0.02,4203.9,4202.8,0.792]
[1758726985139,0.6711,4203.4,4202.8,0.792]
[1758726985444,0.6911,4202.9,4202.8,4.009]
[1758726986430,0.6911,4202.9,4201.6,0.48449231]
[1758726986431,0.6911,4202.9,4202.2,1.982]
[1758726986633,0.6711,4202.8,4202.3,4.009]
[1758726986929,0.6711,4202.7,4202.4,0.792]
[1758726987094,0.6711,4202.7,4202.2,1.982]
[1758726987095,0.02,4202.9,4202.6,0.792]
[1758726987290,0.02,4202.9,4202.7,4.008]
[1758726987727,0.6711,4202.8,4202.3,0.792]
[1758726987948,0.6711,4202.7,4201.7,2.37998216]
[1758726988096,0.6711,4202.6,4202.2,1.982]
[1758726988295,0.6711,4202.5,4202.3,4.008]
[1758726988509,0.6711,4202.4,4202.3,4.008]
[1758726989407,0.6711,4202.4,4201.8,0.792]
[1758726989609,0.6711,4202.3,4201.6,0.47650993]
[1758726989935,0.2353,4202.2,4201.7,5.99]
[1758726990098,0.6711,4202.1,4201.7,5.99]
[1758726990298,0.6711,4202.0,4201.7,5.99]
[1758726990532,0.6711,4201.9,4201.7,5.99]
[1758726990838,2.39931531,4202.9,4201.8,0.792]
[1758726991039,0.23993153,4202.8,4201.9,4.008]
[1758726991343,0.6711,4202.7,4201.9,4.008]
[1758726991513,0.001,4202.6,4201.9,4.008]
[1758726991697,0.6711,4202.5,4201.9,4.008]
[1758726991897,0.6711,4202.4,4201.9,4.008]
[1758726992137,0.6711,4202.3,4201.9,4.008]
[1758726992341,0.001,4202.6,4201.3,3.794]
[1758726992342,0.6711,4202.2,4201.3,3.794]
[1758726992631,0.6711,4202.1,4201.5,0.792]
[1758726992839,0.6711,4202.0,4201.6,4.008]
[1758726993033,0.6711,4201.9,4201.6,4.008]
[1758726993236,0.2363,4202.6,4201.6,4.008]
[1758726993440,0.4358,4202.2,4201.6,4.008]
[1758726993940,0.2353,4202.1,4201.6,4.008]
[1758726994239,0.6711,4202.1,4201.6,4.008]
[1758726994823,0.6711,4202.1,4201.6,6.38804122]
[1758726995029,0.6711,4202.4,4201.7,3.85594483]
[1758726995215,0.6711,4202.4,4201.7,3.17194483]
[1758726995630,0.6711,4202.4,4201.7,0.792]
[1758726996038,0.6711,4202.3,4201.7,0.792]
[1758726996351,0.1184,4202.0,4201.8,4.008]
[1758726996856,0.6711,4202.4,4201.8,4.008]
[1758726997156,0.1184,4202.3,4201.8,4.008]
[1758726997656,0.6711,4202.2,4201.8,4.008]
[1758726997854,0.6711,4202.1,4201.6,0.1184]
[1758726998063,0.6711,4202.0,4201.7,4.008]
[1758726998236,0.6711,4201.9,4201.7,4.008]
[1758726998665,0.4358,4201.9,4201.3,3.29257813]
[1758726998865,0.1184,4202.0,4201.5,0.792]
[1758726999766,0.001,4202.6,4201.7,0.792]
[1758726999767,0.4358,4202.4,4201.7,0.792]
[1758726999928,0.1184,4202.3,4201.8,4.008]
[1758727000461,0.5542,4202.3,4201.9,0.02379875]
[1758727000661,0.5542,4202.3,4201.8,6.63031613]
[1758727000662,0.1184,4202.3,4201.8,4.2504]
[1758727001165,0.1184,4202.3,4201.8,6.63033147]
[1758727001460,0.1184,4202.3,4201.8,4.2504]
[1758727001758,0.3474,4202.3,4201.8,4.008]
[1758727002060,0.6999,4202.2,4201.8,4.008]
[1758727002437,0.4709,4202.2,4201.8,4.008]
[1758727002638,0.1184,4202.3,4201.8,4.008]
[1758727002834,0.6999,4202.2,4201.8,4.008]
[1758727003023,0.4709,4202.1,4201.8,4.008]
[1758727003243,0.229,4202.2,4201.8,4.008]
[1758727003476,0.4709,4202.1,4201.8,4.008]
[1758727003875,0.1184,4202.3,4201.8,4.008]
[1758727004264,0.1184,4202.3,4201.8,4.241]
[1758727004476,0.001,4202.6,4201.9,1.4929]
[1758727004785,0.1194,4202.6,4202.1,8.87449626]
[1758727004967,0.1194,4202.6,4202.5,3.17153599]
[1758727004968,0.001,4202.6,4202.5,3.17153599]
[1758727005173,0.001,4202.6,4202.5,7.90423134]
[1758727005359,0.001,4202.6,4202.5,7.88043599]
[1758727005544,0.001,4202.6,4202.5,7.97579407]
[1758727006355,0.001,4202.6,4202.5,16.05829033]
[1758727006578,0.001,4202.6,4202.5,7.97579407]
[1758727007782,0.001,4202.6,4202.5,0.88735808]
[1758727007988,0.7009,4202.6,4202.4,1.982]
[1758727008152,0.001,4202.6,4202.5,4.008]
[1758727008773,0.7009,4202.6,4201.7,0.32838037]
[1758727008983,0.001,4202.6,4201.8,8.36992131]
[1758727009400,0.001,4202.6,4201.8,5.99]
[1758727009688,0.001,4202.6,4201.9,0.792]
[1758727010951,0.6999,4202.5,4202.0,4.008]
[1758727011150,0.001,4202.6,4202.1,4.008]
[1758727011353,0.7009,4202.6,4202.1,5.99]
[1758727011785,0.001,4202.6,4202.1,5.99]
[1758727011951,0.4709,4202.5,4202.1,5.99]
[1758727012151,0.229,4202.5,4202.1,5.99]
[1758727012351,0.6999,4202.4,4202.1,5.99]
[1758727012777,0.229,4202.4,4202.1,5.99]
[1758727013090,0.229,4202.4,4201.8,0.235]
[1758727013091,0.4709,4202.3,4202.2,4.008]
[1758727013589,0.6999,4202.3,4202.2,4.008]
[1758727013789,0.001,4202.6,4202.2,4.008]
[1758727014090,0.001,4202.6,4202.3,0.25679649]
[1758727014295,0.6999,4202.5,4201.8,0.002]
[1758727014493,0.6999,4202.5,4201.9,5.99]
[1758727014706,0.229,4202.4,4201.9,5.99]
[1758727014887,0.6999,4202.3,4201.9,5.99]
[1758727015062,0.229,4202.2,4201.8,0.794]
[1758727015258,0.6999,4202.2,4201.9,5.99]
[1758727015791,0.1184,4202.4,4201.9,5.99]
[1758727016180,0.1184,4202.4,4202.0,0.233]
[1758727016481,0.1184,4202.4,4202.1,2.63654532]
[1758727016797,0.1184,4202.4,4202.2,4.008]
[1758727017295,0.4709,4202.3,4202.2,4.008]
[1758727017478,0.3474,4202.4,4201.8,0.002]
[1758727017680,0.229,4202.3,4201.8,0.002]
[1758727017884,0.1184,4202.0,4201.9,4.008]
[1758727022437,0.5685,4202.0,4201.9,4.008]
[1758727022595,0.1184,4202.0,4201.9,4.008]
[1758727022789,0.8122,4202.0,4201.9,4.008]
[1758727023825,0.8114,4202.0,4201.9,4.008]
[1758727024194,0.8114,4202.0,4201.8,0.002]
[1758727024594,2.62357577,4201.9,4201.8,0.002]
[1758727024791,3.24481381,4201.9,4201.8,0.002]
[1758727025007,3.69491381,4201.9,4201.8,0.002]
[1758727026440,6.69491381,4201.9,4201.8,0.002]
[1758727026747,7.20797737,4201.9,4201.8,0.002]
[1758727027159,8.06308956,4201.9,4201.8,0.002]
[1758727027456,7.20797737,4201.9,4201.8,0.002]
[1758727028007,8.06308956,4201.9,4201.8,0.002]
[1758727028268,7.20797737,4201.9,4201.8,0.002]
[1758727029568,13.19797737,4201.9,4201.8,0.002]
[1758727032743,21.2880702,4201.9,4201.8,0.002]
[1758727033042,29.37816303,4201.9,4201.8,0.002]
[1758727033448,2.38032896,4201.1,4201.0,0.002]
[1758727033752,19.69945469,4201.1,4201.0,0.002]
[1758727034064,20.90261825,4201.1,4201.0,0.002]
[1758727035958,21.54158071,4201.1,4201.0,0.002]
[1758727036158,20.90261825,4201.1,4201.0,0.002]
[1758727036359,21.5410023,4201.1,4201.0,0.002]
[1758727037277,20.90361825,4201.1,4201.0,0.002]
[1758727038272,6.13142542,4201.1,4201.0,0.002]
[1758727038570,18.23051825,4201.1,4201.0,0.002]
[1758727039073,18.71362225,4201.1,4201.0,0.002]
[1758727039252,14.01452225,4201.1,4201.0,0.002]
[1758727039452,18.02352225,4201.1,4201.0,0.002]
[1758727039978,14.01452225,4201.1,4201.0,0.002]
[1758727040272,18.02352225,4201.1,4201.0,0.002]
[1758727041486,8.84118929,4201.1,4201.0,0.6912]
[1758727041652,8.09009283,4201.4,4201.0,0.6912]
[1758727041846,12.09909283,4201.4,4201.1,0.6892]
[1758727042046,8.09009283,4201.4,4201.2,0.6892]
[1758727042246,8.09009283,4201.4,4201.0,0.002]
[1758727042448,0.1184,4201.2,4201.1,0.6892]
[1758727043244,0.62123804,4201.9,4201.1,0.6892]
[1758727043245,12.09909283,4201.8,4201.1,0.6892]
[1758727043446,11.72509283,4201.8,4201.2,0.6892]
[1758727043645,11.72509283,4201.8,4201.3,0.6892]
[1758727043891,11.72509283,4201.8,4201.4,0.6892]
[1758727044049,11.72509283,4201.8,4201.0,0.002]
[1758727044252,8.09009283,4201.8,4201.5,0.6892]
[1758727044445,0.1184,4201.5,4201.0,0.002]
[1758727044645,0.1194,4201.3,4201.0,0.002]
[1758727045047,0.1194,4201.3,4201.1,0.6892]
[1758727045279,0.1194,4201.3,4201.2,0.6892]
[1758727045794,0.1194,4201.3,4201.2,0.2387]
[1758727046279,0.1194,4201.3,4201.2,0.6892]
[1758727048961,0.1194,4201.3,4201.0,0.002]
[1758727049282,0.001,4201.3,4201.1,0.6892]
[1758727049448,0.001,4201.3,4201.2,0.2387]
[1758727050384,0.1184,4201.2,4201.0,0.002]
[1758727050584,0.1184,4201.2,4201.1,0.2387]
[1758727051048,0.1176,4201.2,4201.1,0.2387]
[1758727051689,2.49787237,4201.2,4201.0,0.002]
[1758727051887,0.53398339,4201.1,4201.0,0.002]
[1758727052420,0.8077,4201.2,4201.0,0.002]
[1758727052925,2.95868571,4201.2,4201.0,0.002]
[1758727053100,3.07042896,4201.1,4201.0,0.002]
[1758727053513,0.62965646,4201.2,4201.0,0.002]
[1758727053823,3.00992914,4201.2,4201.0,0.002]
[1758727054028,3.00993192,4201.2,4201.0,0.002]
[1758727054326,0.62965646,4201.2,4201.0,0.002]
[1758727054692,3.00993752,4201.2,4201.0,0.002]
[1758727054927,3.47073752,4201.2,4201.0,0.002]
[1758727055229,1.23180375,4201.1,4201.0,0.002]
[1758727055527,3.84143271,4201.1,4201.0,0.002]
[1758727056102,0.77100375,4201.1,4201.0,0.002]
[1758727056531,4.52105646,4201.1,4201.0,0.2407]
[1758727056705,4.1266,4201.2,4201.0,0.6912]
[1758727056905,4.1266,4201.2,4201.1,0.2387]
[1758727057199,7.01892876,4201.2,4201.0,0.002]
[1758727057403,0.51205646,4201.1,4201.0,0.002]
[1758727057731,3.83239458,4201.1,4201.0,0.002]
[1758727058032,0.94000916,4201.1,4201.0,0.002]
[1758727058207,4.009,4201.1,4201.0,0.002]
[1758727058526,7.36218542,4201.1,4201.0,0.002]
[1758727058727,7.59148542,4201.1,4201.0,0.002]
[1758727059132,10.59148542,4201.1,4201.0,0.002]
[1758727059429,11.87415371,4201.1,4201.0,0.002]
[1758727059587,12.17218397,4201.1,4201.0,0.002]
[1758727059793,13.60618397,4201.1,4201.0,0.002]
[1758727060027,5.38038562,4201.0,4200.9,0.002]
[1758727060228,5.89244208,4201.0,4200.9,0.002]
[1758727060430,6.58254208,4201.0,4200.9,0.002]
[1758727060729,8.41932222,4201.0,4200.9,0.002]
[1758727060932,30.45591234,4201.0,4200.9,0.002]
[1758727061433,29.02191234,4201.0,4200.9,0.002]
[1758727064734,35.01391234,4201.0,4200.9,0.002]
[1758727067038,6.29084228,4200.9,4200.8,1e-08]
[1758727067250,9.19418489,4200.9,4200.8,1e-08]
[1758727067453,9.89418489,4200.9,4200.8,1e-08]
[1758727067656,0.792,4200.4,4200.1,1e-08]
[1758727067953,2.38140598,4199.2,4198.4,0.2349]
[1758727068162,9.86667964,4199.2,4198.4,0.2349]
[1758727068325,10.3787361,4199.2,4198.4,0.2349]
[1758727068521,31.68132622,4199.2,4198.0,0.2349]
[1758727068722,31.68132622,4199.2,4197.8,0.4365]
[1758727068942,32.47332622,4199.2,4197.8,0.6714]
[1758727069256,2.38197322,4198.2,4197.8,0.002]
[1758727069440,9.62917054,4198.2,4197.8,0.2369]
[1758727069754,10.141227,4198.2,4197.8,0.2369]
[1758727071755,10.142227,4198.2,4198.1,0.6894]
[1758727072255,3.23819732,4198.2,4198.1,0.6894]
[1758727072555,7.24819732,4198.2,4198.1,0.6894]
[1758727072757,9.63017054,4198.2,4198.1,0.2549]
[1758727073059,9.63017054,4198.2,4198.1,0.6894]
[1758727073446,9.63017054,4198.2,4198.1,0.02]
[1758727073824,10.14037779,4198.2,4198.1,0.02]
[1758727074358,9.63017054,4198.2,4198.1,0.02]
[1758727075466,10.14012,4198.2,4198.1,0.02]
[1758727075785,9.63017054,4198.2,4198.1,0.02]
[1758727076195,10.8401237,4198.2,4198.1,0.02]
[1758727077576,11.47966792,4198.2,4198.1,0.02]
[1758727078092,10.8393237,4198.2,4198.1,0.02]
[1758727078891,11.6313237,4198.2,4198.1,0.02]
[1758727080099,12.1243237,4198.2,4198.1,0.02]
[1758727080300,13.43723756,4198.2,4198.1,0.02]
[1758727081290,13.5922237,4198.2,4198.1,0.02]
[1758727081463,15.0262237,4198.2,4198.1,0.02]
[1758727082302,15.87894933,4198.2,4198.1,0.02]
[1758727082706,5.38214345,4197.9,4197.8,0.002]
[1758727082902,12.59907864,4197.9,4197.8,0.002]
[1758727083113,13.27497864,4197.9,4197.8,0.002]
[1758727083703,12.63774589,4197.9,4197.8,0.002]
[1758727084217,13.27497864,4197.9,4197.8,0.002]
[1758727085199,11.96184589,4197.9,4197.8,0.002]
[1758727085402,8.58830253,4197.9,4197.8,0.002]
[1758727085723,14.58330253,4197.9,4197.8,0.002]
[1758727086389,10.57230253,4197.9,4197.8,0.2296]
[1758727086584,14.58330253,4197.9,4197.8,0.2296]
[1758727087088,14.58330253,4197.9,4197.8,0.002]
[1758727087288,13.94584589,4197.9,4197.8,0.002]
[1758727087515,14.58379865,4197.9,4197.8,0.002]
[1758727087712,14.58379865,4197.9,4197.8,0.2296]
[1758727088019,6.53004937,4197.9,4197.8,0.6683]
[1758727088205,4.52095316,4197.9,4197.8,0.6683]
[1758727088406,6.90309661,4197.9,4197.8,0.6683]
[1758727088717,9.39314345,4197.9,4197.8,0.2296]
[1758727088904,9.9038066,4197.9,4197.8,0.002]
[1758727089083,11.33079158,4197.9,4197.8,0.002]
[1758727089952,11.33079158,4197.9,4197.8,0.6683]
[1758727090152,13.31579158,4197.9,4197.8,0.6683]
[1758727090828,11.33079158,4197.9,4197.8,0.6683]
[1758727093573,11.33079158,4197.9,4197.8,0.2296]
[1758727093919,11.33079158,4197.9,4197.8,0.6594]
[1758727094326,5.8928066,4197.9,4197.8,0.6594]
[1758727094523,9.9038066,4197.9,4197.8,0.6594]
[1758727095071,9.9038066,4197.9,4197.8,0.002]
[1758727095279,10.54175936,4197.9,4197.8,0.002]
[1758727095957,9.9038066,4197.9,4197.8,0.2373]
[1758727096164,10.8882632,4197.9,4197.8,0.2373]
[1758727096875,10.8882632,4197.9,4197.8,0.002]
[1758727097889,12.16913362,4197.9,4197.8,0.002]
[1758727098386,10.8882632,4197.9,4197.8,0.6671]
[1758727100476,9.9038066,4197.9,4197.8,0.6671]
[1758727101049,9.9038066,4197.9,4197.8,0.2373]
[1758727101754,9.9038066,4197.9,4197.8,0.002]
[1758727103293,9.9038066,4197.9,4197.8,0.6671]
[1758727104576,9.9038066,4197.9,4197.8,0.2373]
[1758727104911,11.45951469,4197.9,4197.8,0.2373]
[1758727105112,11.45871469,4197.9,4197.8,0.2373]
[1758727105976,11.45871469,4197.9,4197.8,0.6671]
[1758727105977,3.51066315,4197.9,4197.8,0.6671]
[1758727106325,1.28622468,4198.1,4197.8,0.6671]
[1758727106326,0.6439382,4198.1,4197.8,0.6671]
[1758727106481,0.001,4198.1,4197.9,0.6651]
[1758727106812,0.001,4198.1,4198.0,0.6651]
[1758727108423,0.001,4198.1,4198.0,3.0471867]
[1758727108810,0.001,4198.1,4198.0,0.6651]
[1758727109181,0.1194,4198.1,4198.0,0.6651]
[1758727110786,0.1194,4198.1,4198.0,0.2353]
[1758727111128,0.63331501,4198.1,4198.0,0.2353]
[1758727111296,0.63331501,4198.1,4197.8,0.002]
[1758727111621,0.001,4198.1,4197.8,0.2373]
[1758727111785,0.51491501,4198.1,4197.8,0.2373]
[1758727111986,2.38303851,4198.1,4197.8,0.2373]
[1758727112188,2.38209492,4198.0,4197.8,0.2373]
[1758727112446,4.01,4197.9,4197.8,0.002]
[1758727112822,4.01,4197.9,4197.8,0.4318]
[1758727113021,4.01,4197.9,4197.8,0.6671]
[1758727113957,4.01,4197.9,4197.8,0.2373]
[1758727114142,4.01,4197.9,4197.8,0.6671]
[1758727116030,4.01,4197.9,4197.8,0.2373]
[1758727116751,4.01,4197.9,4197.8,0.6671]
[1758727117950,0.51491501,4198.1,4197.8,0.6671]
[1758727118152,4.01,4198.0,4197.8,0.6671]
[1758727118322,4.01,4198.0,4197.8,0.4318]
[1758727118528,4.01,4198.0,4197.9,0.2353]
[1758727118922,4.01,4198.0,4197.9,0.6651]
[1758727120790,4.01,4198.0,4197.9,0.2353]
[1758727120944,4.01,4198.0,4197.8,0.002]
[1758727120945,0.1184,4197.9,4197.8,0.002]
[1758727121139,0.63231501,4197.9,4197.8,0.002]
[1758727121654,0.1184,4197.9,4197.8,0.002]
[1758727121857,0.1184,4197.9,4197.8,0.2348]
[1758727122679,0.1184,4197.9,4197.8,0.7022]
[1758727122883,0.1184,4197.9,4197.8,0.2348]
[1758727123184,0.1184,4197.9,4197.8,0.7022]
[1758727125174,0.1184,4197.9,4197.8,0.2348]
[1758727125377,2.50054345,4197.9,4197.8,0.002]
[1758727125590,3.44129644,4197.9,4197.8,0.002]
[1758727125880,7.63911145,4197.9,4197.8,0.002]
[1758727127259,8.49641198,4197.9,4197.8,0.002]
[1758727127492,12.50541198,4197.9,4197.8,0.002]
[1758727130987,12.50528906,4197.9,4197.8,0.002]
[1758727131311,14.48928906,4197.9,4197.8,0.002]
[1758727131509,12.50528906,4197.9,4197.8,0.002]
[1758727131707,10.96408853,4197.9,4197.8,0.002]
[1758727132021,6.95508853,4197.9,4197.8,0.2348]
[1758727132186,10.96328853,4197.9,4197.8,0.002]
[1758727132709,10.96328853,4197.9,4197.8,0.2348]
[1758727133108,10.96328853,4197.9,4197.8,0.002]
[1758727133326,6.95428853,4197.9,4197.8,0.002]
[1758727133487,10.96328853,4197.9,4197.8,0.002]
[1758727133831,1.15597926,4197.9,4197.8,0.7022]
[1758727134035,4.009,4197.9,4197.8,0.7022]
[1758727134429,0.51479209,4198.0,4197.8,0.7022]
[1758727134430,0.001,4198.0,4197.8,0.7022]
[1758727134602,0.001,4198.0,4197.9,0.7002]
[1758727139745,0.001,4198.0,4197.8,0.002]
[1758727139746,0.1184,4197.9,4197.8,0.002]
[1758727139945,0.1184,4197.9,4197.8,0.7182]
[1758727146250,0.001,4198.0,4197.9,3.17414345]
[1758727146470,0.001,4198.0,4197.9,3.89034345]
[1758727146773,0.001,4198.0,4197.9,6.91416488]
[1758727146944,0.001,4198.0,4197.9,6.89034345]
[1758727147451,0.001,4198.0,4197.9,6.98580896]
[1758727147864,0.001,4198.0,4197.9,15.08473903]
[1758727149384,0.001,4198.0,4197.9,1.5082]
[1758727149676,0.001,4198.0,4197.8,0.002]
[1758727149880,0.6842,4197.9,4197.8,0.002]
[1758727150236,0.001,4198.0,4197.8,0.002]
[1758727150432,0.58166055,4198.0,4197.8,0.002]
[1758727150933,0.4369,4197.9,4197.8,0.002]
[1758727151167,0.6842,4197.9,4197.8,0.002]
[1758727151364,0.33436055,4198.0,4197.8,0.002]
[1758727151560,2.71645849,4198.0,4197.8,0.002]
[1758727151771,3.3542193,4197.9,4197.8,0.002]
[1758727153536,2.6786193,4197.9,4197.8,0.002]
[1758727153959,0.29647585,4197.9,4197.8,0.002]
[1758727154875,3.3542193,4197.9,4197.8,0.002]
[1758727155384,0.29647585,4197.9,4197.8,0.002]
[1758727155582,0.001,4198.0,4197.8,0.6983]
[1758727155767,0.001,4198.0,4197.9,0.243]
[1758727155964,0.001,4198.0,4197.8,0.002]
[1758727157469,2.38310779,4198.0,4197.8,0.002]
[1758727157654,0.6756,4197.9,4197.8,0.002]
[1758727157860,0.98156353,4197.9,4197.8,0.002]
[1758727158385,0.30596353,4197.9,4197.8,0.002]
[1758727161610,0.001,4197.9,4197.8,0.002]
[1758727163113,2.38314345,4197.9,4197.8,0.002]
[1758727163401,3.05874345,4197.9,4197.8,0.002]
[1758727163958,6.05874345,4197.9,4197.8,0.002]
[1758727164164,7.46716392,4197.9,4197.8,0.002]
[1758727164361,11.47316392,4197.9,4197.8,0.002]
[1758727164561,13.45716392,4197.9,4197.8,0.002]
[1758727164798,14.31446445,4197.9,4197.8,0.002]
[1758727166284,13.45716392,4197.9,4197.8,0.002]
[1758727166699,14.7423886,4197.9,4197.8,0.002]
[1758727166879,13.45716392,4197.9,4197.8,0.002]